Cogmind - Beta 13 *** ADVENTURER MODE // 2024.07.20 @ 21:40:22 Player: grimmkin Result: Self-destructed Performance ------------- Evolutions (3) 1500 Regions Visited (6) 1200 Robots Destroyed (54) 270 Value Destroyed (1293) 1293 Prototype IDs (7) 140 Alien Tech Used (0) 0 Bonus (2) 2 TOTAL SCORE: 4405 Bonus ------- High Alert Combat Kills 2 Cogmind --------- Core Integrity 405/700 Matter 235/300 Energy 61/100 System Corruption 5% Temperature Cool (0) Movement Core (700) Ox13 Location -7/Factory Parts ------- > --- POWER (2) -------- (None) > --- PROPULSION (4) --- (None) > --- UTILITY (5) ------ High-capacity Storage Unit ECM Suite Hacking Suite > --- WEAPON (2) ------- (None) > --- INVENTORY (20) --- Improved Heat Sink Large Battery (200) High-capacity Battery (250) Large Matter Pod (150) Hacking Suite Advanced EMP Blaster Advanced EMP Blaster Grenade Launcher Rocket Launcher Datajack Datajack Mining Laser Peak State ------------ > --- POWER ------------ Light Ion Engine Light Angular Momentum Engine > --- PROPULSION ------- Improved Treads Improved Treads Advanced Treads Cooled VTOL Module > --- UTILITY ---------- High-capacity Storage Unit Experimental Sensor Array Improved Terrain Scanner Propulsion Shielding Hacking Suite > --- WEAPON ----------- Shock Rifle Heavy Battle Rifle > --- INVENTORY -------- Improved Heat Sink Large Battery High-capacity Battery Large Matter Pod Sensor Array ECM Suite Medium Armor Plating Hacking Suite Beamcaster Advanced EMP Blaster Advanced EMP Blaster Grenade Launcher Grenade Launcher Rocket Launcher Datajack Datajack Mining Laser [Rating: 45] Favorites ----------- Power Light Ion Engine Engine Light Ion Engine Propulsion Improved Treads Treads Improved Treads Flight Unit Cooled VTOL Module Utility High-capacity Storage Unit Device Improved Heat Sink Storage High-capacity Storage Unit Hackware Hacking Suite Protection Propulsion Shielding Weapon Assault Rifle Energy Gun Medium Laser Ballistic Gun Assault Rifle Launcher Grenade Launcher Special Weapon Mining Laser Special Melee Weapon Datajack Build | -11 -10 -10 -10 -9 -8 -7 ------- Run | Yrd Mat Min Exi Min Mat Fac Slots Evolved 6 | . . . . . 4 2 Power 1 | . . . . . 1 . Propulsion 2 | . . . . . 2 . Utility 3 | . . . . . 1 2 Weapon . | . . . . . . . Parts Attached 59 | 6 12 6 1 5 18 11 Power 8 | 1 1 1 . 1 2 2 Engine 8 | 1 1 1 . 1 2 2 Core . | . . . . . . . Reactor . | . . . . . . . Propulsion 10 | 2 2 . . . 4 2 Treads 9 | 2 2 . . . 4 1 Leg . | . . . . . . . Wheel . | . . . . . . . Hover . | . . . . . . . Flight 1 | . . . . . . 1 Utility 15 | 1 4 1 1 1 2 5 Device 8 | . 3 1 . 1 . 3 Storage 3 | 1 1 . 1 . . . Processor . | . . . . . . . Hackware 1 | . . . . . 1 . Protection 3 | . . . . . 1 2 Artifact . | . . . . . . . Weapon 26 | 2 5 4 . 3 10 2 Energy Gun 4 | 1 . . . . 2 1 Energy Cannon . | . . . . . . . Ballistic Gun 9 | 1 3 1 . 1 3 . Ballistic Cannon . | . . . . . . . Launcher 6 | . . 2 . 1 2 1 Special Weapon 2 | . 2 . . . . . Impact Weapon . | . . . . . . . Slashing Weapon . | . . . . . . . Piercing Weapon . | . . . . . . . Special Melee Weapon 5 | . . 1 . 1 3 . Unidentified Prototypes 4 | . . . . 1 2 1 Corrupted Parts 1 | . . . . . . 1 System Corruption 5 | . . . . . . 5 Parts Lost 18 | . 1 1 . . 3 13 Power 6 | . 1 . . . 1 4 Propulsion 4 | . . . . . 2 2 Utility 4 | . . . . . . 4 Weapon 4 | . . 1 . . . 3 Highest Loss Streak 9 | . 1 1 . . 2 9 To Critical Strikes 1 | . . . . . . 1 Average Slot Usage (%) 94 | . 95 89 100 100 92 79 Engine 11 | . 10 4 14 14 16 11 Treads 27 | . 28 28 28 28 31 20 Device 13 | . 12 14 14 14 9 12 Storage 13 | . 14 14 14 14 9 7 Hackware 1 | . . . . . 8 7 Energy Gun 1 | . 5 . . . 1 7 Ballistic Gun 14 | . 21 5 14 21 9 4 Launcher 3 | . . 13 . . . . Special Melee Weapon 6 | . . 9 14 6 6 . Naked Turns . | . . . . . . . Heaviest Build 89 | 11 89 87 87 56 60 71 Greatest Support 92 | 40 46 46 46 46 92 66 Greatest Overweight (x) 19 | . 1 1 1 1 1 19 Average Overweight (x) . | . . 1 1 1 . 1 Largest Inventory Capacity 25 | 8 25 25 25 20 20 20 Average Capacity 19 | 7 13 25 20 20 20 20 Most Carried 19 | 4 9 12 12 17 19 19 Average Carried 11 | 1 7 9 11 15 17 15 Final Capacity 25 | 8 25 25 20 20 20 20 Final Carried 19 | 1 9 11 12 17 19 12 Class Distribution -------------------- 86% | Mutant 12% | Hacker-Mutant Dominant Class ---------------- Mutant | -10/Materials Mutant | -10/Mines Mutant | -10/Exiles Mutant | -9/Mines Hacker-Mutant | -8/Materials Hacker-Mutant | -7/Factory Resources | -11 -10 -10 -10 -9 -8 -7 ----------- Run | Yrd Mat Min Exi Min Mat Fac Matter Collected 1400 | 192 528 220 . 104 309 47 Remotely . | . . . . . . . Salvage Created 1457 | . 574 151 . 80 473 179 Parts 109 | . 39 10 . 7 30 23 Haulers Intercepted . | . . . . . . . Recyclers Shooed 1 | . . . . . 1 . Parts Field Recycled . | . . . . . . . Retrieved Matter . | . . . . . . . Parts Self-Destructed . | . . . . . . . Prevented . | . . . . . . . Kills | -11 -10 -10 -10 -9 -8 -7 ------- Run | Yrd Mat Min Exi Min Mat Fac Combat Hostiles Destroyed 39 | . 17 2 . 4 14 2 Guns 31 | . 17 . . 1 11 2 AOE 8 | . . 2 . 3 3 . Classes Destroyed 10 | . 3 3 . 1 2 1 Worker 4 | . . 2 . 1 1 . Builder 4 | . . . . . . 4 Tunneler 1 | . . 1 . . . . Recycler 1 | . . 1 . . . . Operator 1 | . . . . . 1 . Watcher 4 | . 2 . . . 2 . Swarmer 16 | . 6 . . 3 6 1 Grunt 19 | . 11 2 . . 6 . Duelist 1 | . . . . . 1 . Sentry 3 | . . . . 1 1 1 Best Kill Streak 4 | . 3 2 . 3 4 2 Combat Bots Only 4 | . 3 2 . 3 4 1 Max Kills in Single Turn 3 | . 2 1 . 3 1 2 Gunslinging 1 | . 1 . . . . . Exploded 3 | . . 1 . 3 1 . Melee . | . . . . . . . Uniques/NPCs Destroyed . | . . . . . . . Combat | -11 -10 -10 -10 -9 -8 -7 -------- Run | Yrd Mat Min Exi Min Mat Fac Hostile Shots Fired 405 | . 92 7 . 5 58 243 Missed 99 | . 23 2 . 2 7 65 Damage Taken 2377 | . 559 96 . 59 455 1208 Core 464 | . 103 18 . 9 39 295 Absorbed by Shields . | . . . . . . . Redirected to Shielding 50 | . . . . . . 50 Ignored by Resistances 752 | . 175 28 . 17 139 393 Core Remaining (%) 80 | 100 . . . 48 92 . Volleys Fired 136 | . 58 17 . 2 41 18 Largest 2 | . 2 2 . 2 2 2 Hottest 125 | . 100 60 . 53 83 125 Shots Fired 218 | . 111 20 . 4 48 35 Gun 195 | . 105 10 . 3 46 31 Cannon . | . . . . . . . Launcher 17 | . . 10 . 1 2 4 Special 6 | . 6 . . . . . Kinetic 147 | . 85 10 . 3 40 9 Thermal 36 | . 26 . . . . 10 Explosive 17 | . . 10 . 1 2 4 Electromagnetic 18 | . . . . . 6 12 Robot Hit Streak 24 | . 13 9 . 10 22 24 Robot Miss Streak 4 | . 4 1 . . 2 1 Penetration Max . | . . . . . . . Secondary Targets 7 | . 5 . . . 1 1 Max Gunslinging Chain 1 | . 1 . . . 1 1 Shots Hit Robots 158 | . 73 13 . 5 43 24 Core Hits 88 | . 36 9 . 4 27 12 Critical Kills 2 | . 1 . . . 1 . Critical Parts Destroyed 2 | . 1 . . . 1 . Critical Strikes 5 | . 3 . . . 2 . Burn 1 | . 1 . . . . . Destroy 4 | . 2 . . . 2 . Melee Attacks 3 | . . 1 . 1 1 . Impact . | . . . . . . . Slashing . | . . . . . . . Piercing . | . . . . . . . Sneak Attacks 2 | . . 1 . 1 . . Combat Hostiles . | . . . . . . . Follow-up Attacks . | . . . . . . . Damage Inflicted 3147 | . 802 384 . 194 1171 596 Guns 2235 | . 777 104 . 48 872 434 Cannons . | . . . . . . . Explosions 861 | . . 274 . 126 299 162 Melee . | . . . . . . . Ramming 51 | . 25 6 . 20 . . Kinetic 1697 | . 614 104 . 48 761 170 Thermal 376 | . 163 . . . 86 127 Explosive 735 | . . 274 . 126 173 162 Electromagnetic 288 | . . . . . 151 137 Impact . | . . . . . . . Slashing . | . . . . . . . Piercing . | . . . . . . . Highest Corruption 5 | . 1 1 1 1 . 5 Average Corruption 1 | . 1 1 1 1 . 5 Corruption Purged . | . . . . . . . Corruption Blocked . | . . . . . . . Effects 42 | . 7 11 4 14 . 6 Message Errors 13 | . 3 3 1 6 . . Matter Fused 9 | . . 5 . 4 . . Heat Flow Errors 4 | . 2 1 1 . . . Energy Discharges 3 | . . . . 1 . 2 Parts Rejected 1 | . . . . . . 1 Data Loss (minor) 5 | . . 1 1 3 . . Data Loss (major) 3 | . 1 1 1 . . . Misfires 3 | . 1 . . . . 2 Weapon Failures 1 | . . . . . . 1 Overload Shots . | . . . . . . . Overflow Damage 3 | . . . . . 3 . Projectiles . | . . . . . . . Explosions 3 | . . . . . 3 . Melee . | . . . . . . . Knockbacks . | . . . . . . . Impact . | . . . . . . . Kinetic . | . . . . . . . Secondary . | . . . . . . . Self-Inflicted Damage 117 | . . 52 . 28 26 11 Shots 7 | . . 4 . 1 1 1 Rammed 6 | . 3 1 . 2 . . Targets Rammed 7 | . 3 1 . 3 . . Kicked . | . . . . . . . Crushed 1 | . . . . 1 . . Highest Temperature 382 | . 221 271 165 . 171 382 Average Temperature 71 | . 38 139 99 . 60 134 Received Heat Transfer 804 | . 330 33 . 9 90 342 Effects 2 | . . . . . . 2 Interference 1 | . . . . . . 1 Short Circuit 1 | . . . . . . 1 Siege Activations . | . . . . . . . Robots Corrupted . | . . . . . . . Combat Hostiles . | . . . . . . . Parts Fried . | . . . . . . . Impact Corruptions . | . . . . . . . Robots Melted . | . . . . . . . Combat Hostiles . | . . . . . . . Parts Melted . | . . . . . . . Heat Transferred 827 | . 555 . . . 50 222 Parts Sabotaged . | . . . . . . . Parts Stolen . | . . . . . . . Parts Stripped . | . . . . . . . Power Chain Reactions 1 | . . . . . 1 . Alert | -11 -10 -10 -10 -9 -8 -7 ------- Run | Yrd Mat Min Exi Min Mat Fac Peak Influence 408 | . 292 121 . 77 408 144 Initial 109 | . . 30 . . . 109 Average 75 | . 95 34 . 31 217 118 Maximum Alert Level 2 | . 1 . . . 2 . Low Security (%) 88 | 100 86 100 . 100 37 100 Level 1 10 | . 13 . . . 57 . Level 2 . | . . . . . 5 . Level 3 . | . . . . . . . Level 4 . | . . . . . . . Level 5 . | . . . . . . . High Security . | . . . . . . . Max Security . | . . . . . . . Squads Dispatched 9 | . 4 . . . 1 4 Investigation 5 | . 4 . . . 1 . Extermination 1 | . . . . . . 1 Reinforcement 1 | . . . . . . 1 Assault . | . . . . . . . Garrison 2 | . . . . . . 2 Intercept . | . . . . . . . Searches Triggered . | . . . . . . . Construction Impeded 1 | . . . . . . 1 Haulers Reinforced . | . . . . . . . Active Scanning Responses . | . . . . . . . Cargo Convoy Interrupts . | . . . . . . . Stealth | -11 -10 -10 -10 -9 -8 -7 --------- Run | Yrd Mat Min Exi Min Mat Fac Distress Signals . | . . . . . . . Communications Jammed . | . . . . . . . Distress Signals . | . . . . . . . Times Spotted 59 | . 26 2 . 6 18 7 Peak Tracking Total 4 | . 3 2 . 3 4 4 Tactical Retreats 3 | . 1 . . . 2 . Traps | -11 -10 -10 -10 -9 -8 -7 ------- Run | Yrd Mat Min Exi Min Mat Fac Traps Triggered 4 | . 3 . . . 1 . Indirectly . | . . . . . . . Trap Hack Attempts . | . . . . . . . Triggered . | . . . . . . . Disarmed . | . . . . . . . Reprogrammed . | . . . . . . . Reused . | . . . . . . . Traps Extracted . | . . . . . . . Installed . | . . . . . . . Triggered . | . . . . . . . Machines | -11 -10 -10 -10 -9 -8 -7 ---------- Run | Yrd Mat Min Exi Min Mat Fac Machines Disabled 4 | . . . . . 4 . Max in Single Turn 2 | . . . . . 2 . Machines Repaired . | . . . . . . . Machines Dismantled . | . . . . . . . Machines Sabotaged . | . . . . . . . Overloaded Fab Kills . | . . . . . . . Hacking | -11 -10 -10 -10 -9 -8 -7 --------- Run | Yrd Mat Min Exi Min Mat Fac Machines Accessed 13 | . 8 . 4 . 1 . Terminals 6 | . 6 . . . . . Fabricators . | . . . . . . . Repair Stations . | . . . . . . . Recycling Units 2 | . 2 . . . . . Scanalyzers . | . . . . . . . Garrison Access 1 | . . . . . 1 . Total Hacks 79 | . 29 . 49 . 1 . Successful 68 | . 18 . 49 . 1 . Failed 11 | . 11 . . . . . Catastrophic 1 | . 1 . . . . . Database Lockouts . | . . . . . . . Manual 1 | . 1 . . . . . Terminals 25 | . 25 . . . . . Fabricators . | . . . . . . . Repair Stations . | . . . . . . . Recycling Units 4 | . 4 . . . . . Scanalyzers . | . . . . . . . Garrison Access 1 | . . . . . 1 . Terminal Hacks 66 | . 17 . 49 . . . Record 55 | . 6 . 49 . . . Prototype ID Bank 3 | . 3 . . . . . Level Access Points 1 | . 1 . . . . . Emergency Access Points 1 | . 1 . . . . . Scanalyzer Index 1 | . 1 . . . . . Alert Level 2 | . 2 . . . . . Transport Status 1 | . 1 . . . . . Reinforcement Status 1 | . 1 . . . . . Zone Layout 1 | . 1 . . . . . Fabricator Hacks . | . . . . . . . Repair Station Hacks . | . . . . . . . Recycling Unit Hacks 1 | . 1 . . . . . Retrieve Matter 1 | . 1 . . . . . Scanalyzer . | . . . . . . . Garrison Access Hacks 1 | . . . . . 1 . Unlock Access 1 | . . . . . 1 . Unauthorized Hacks . | . . . . . . . Terminals . | . . . . . . . Fabricators . | . . . . . . . Repair Stations . | . . . . . . . Recycling Units . | . . . . . . . Scanalyzers . | . . . . . . . Garrison Access . | . . . . . . . Data Cores Recovered 1 | . . . . . 1 . Used . | . . . . . . . Hacking Detections 5 | . 5 . . . . . Full Trace Events 3 | . 3 . . . . . Feedback Events . | . . . . . . . Feedback Blocked . | . . . . . . . Robot Schematics Acquired . | . . . . . . . Robots Built . | . . . . . . . Authchips . | . . . . . . . Time . | . . . . . . . Total Robot Build Rating . | . . . . . . . Part Schematics Acquired . | . . . . . . . Parts Built . | . . . . . . . Authchips . | . . . . . . . Time . | . . . . . . . Total Part Build Rating . | . . . . . . . Parts Repaired . | . . . . . . . Time . | . . . . . . . Parts Recycled . | . . . . . . . Recycled Matter . | . . . . . . . Retrieved Matter . | . . . . . . . Retrieved Components . | . . . . . . . Parts Scanalyzed . | . . . . . . . Part Schematics Acquired . | . . . . . . . Parts Damaged . | . . . . . . . Bothacking | -11 -10 -10 -10 -9 -8 -7 ------------ Run | Yrd Mat Min Exi Min Mat Fac Used RIF Installer . | . . . . . . . Robots Hacked 1 | . . . . . 1 . Non-combat . | . . . . . . . Combat 1 | . . . . . 1 . Robot Hacks Applied 1 | . . . . . 1 . parse_system 1 | . . . . . 1 . Relay Couplers Released . | . . . . . . . Fabnet Peak Effective % . | . . . . . . . Robots Rewired . | . . . . . . . Allies Hacked . | . . . . . . . Hacks Repelled . | . . . . . . . Allies | -11 -10 -10 -10 -9 -8 -7 -------- Run | Yrd Mat Min Exi Min Mat Fac Total Allies . | . . . . . . . Largest Group . | . . . . . . . Highest-Rated Group . | . . . . . . . Highest-Rated Ally . | . . . . . . . Total Orders . | . . . . . . . Ally Attacks . | . . . . . . . Total Damage . | . . . . . . . Kills . | . . . . . . . Allies Corrupted . | . . . . . . . Allies Melted . | . . . . . . . Intel | -11 -10 -10 -10 -9 -8 -7 ------- Run | Yrd Mat Min Exi Min Mat Fac Robot Analysis Total . | . . . . . . . Derelict Logs Recovered 2 | . . 1 . 1 . . Drone Launches . | . . . . . . . Drone Recoveries . | . . . . . . . Exploration | -11 -10 -10 -10 -9 -8 -7 ------------- Run | Yrd Mat Min Exi Min Mat Fac Turns Passed 6412 | 73 1519 1445 1017 1436 617 305 Spaces Moved 2673 | 44 695 581 422 587 252 92 Core 10 | 8 . . . . . 2 Treads 2663 | 36 695 581 422 587 252 90 Legs . | . . . . . . . Wheels . | . . . . . . . Hover . | . . . . . . . Flight . | . . . . . . . Fastest Speed 50 | 50 160 240 240 240 156 160 Average Speed 218 | 140 180 240 240 240 192 251 Slowest Speed 1000 | 160 240 240 240 240 240 1000 Overloaded Moves . | . . . . . . . Propulsion Burnouts . | . . . . . . . Robots Hopped . | . . . . . . . Cave-ins Triggered . | . . . . . . . Exploration Rate (%) 57 | 4 90 98 89 99 23 2 Regions Visited 6 Branch Regions 3 Pre-discovered Areas 3 | . . 1 1 1 . . Known Exits Taken . | . . . . . . . Unknown Exits Taken 6 | 1 1 1 1 1 1 . Scrap Searched 2 | . . 1 . 1 . . Spaces Dug 6 | . 6 . . . . . Terrain Destroyed 87 | . 6 44 . 7 30 . Melee . | . . . . . . . Projectile 6 | . 6 . . . . . AOE 81 | . . 44 . 7 30 . Terrain Rammed . | . . . . . . . Walls Destroyed . | . . . . . . . Machines Disabled . | . . . . . . . Actions | -11 -10 -10 -10 -9 -8 -7 --------- Run | Yrd Mat Min Exi Min Mat Fac Total 3011 | 56 849 609 428 604 333 132 Wait 63 | . 53 . 1 . 7 2 Move 2667 | 43 694 580 421 586 251 92 Hop . | . . . . . . . Pick Up 57 | 7 19 4 3 6 12 6 Fast Attach . | . . . . . . . Attach 33 | 6 4 2 . . 10 11 Detach . | . . . . . . . Swap 26 | . 8 4 1 5 8 . Drop 19 | . 10 . 2 1 3 3 Fire 136 | . 58 17 . 2 41 18 Melee 3 | . . 1 . 1 1 . Ram . | . . . . . . . Kick . | . . . . . . . Crush 7 | . 3 1 . 3 . . Escape Stasis . | . . . . . . . Rewire . | . . . . . . . Trap . | . . . . . . . Miscellaneous . | . . . . . . . Route ------- -11/Scrapyard -10/Materials (discovered 4 exits: *Mat x3 / [*Min]) -10/Mines (discovered 3 exits: *Mat x2 / *Exi) -10/Exiles -9/Mines (discovered 2 exits: *Mat x2) -8/Materials (discovered 2 exits: [*Fac] / Gar) -7/Factory History --------- Turn | Location | Event 30 | -11/Scrapyard | Discovered new exit (range 15) 74 | -11/Scrapyard | Entered Materials 205 | -10/Materials | Discovered new exit (range 16) 318 | -10/Materials | Build established: Mutant 445 | -10/Materials | Discovered new exit (range 15) 950 | -10/Materials | Discovered new exit (range 16) 1070 | -10/Materials | Identified exit to Materials 1593 | -10/Materials | Entered Mines 1827 | -10/Mines | Discovered exit to Materials (range 13) 2296 | -10/Mines | Deemed a non-threat by the Exiles lab entrance 2296 | -10/Mines | Discovered new exit (range 5) 2628 | -10/Mines | Learned location of Recycling (-9) 2722 | -10/Mines | Discovered exit to Materials (range 12) 3038 | -10/Mines | Entered Exiles 3111 | -10/Exiles | Met 8R-AWN 3144 | -10/Exiles | Met EX-HEX 3265 | -10/Exiles | Met EX-DEC 3331 | -10/Exiles | Visited The Gauntlet 3584 | -10/Exiles | Learned location of Zion (-6) 3675 | -10/Exiles | Met EX-BIN 4027 | -10/Exiles | Discovered new exit (range 10) 4055 | -10/Exiles | Entered Mines 4058 | -9/Mines | Core integrity fell below 50% 4129 | -9/Mines | Found a damaged Exp. Sensor Array with a note attached 4133 | -9/Mines | Found Prototype Device 4134 | -9/Mines | Identified Exp. Sensor Array 4371 | -9/Mines | Discovered new exit (range 15) 4376 | -9/Mines | Learned Materials stockpile data 4405 | -9/Mines | Received a Rocket Launcher from a helpful Derelict 4748 | -9/Mines | A weapon hastily lodged in a ceiling crevice suddenly fell to the ground 4773 | -9/Mines | Learned location of Storage (-9) 4866 | -9/Mines | Joined a pair of Derelicts in attacking an 0b10 outpost 4984 | -9/Mines | Discovered new exit (range 5) 5491 | -9/Mines | Entered Materials 5491 | -8/Materials | Evolved 4 slots: Power x1, Propulsion x2, Utility x1 5573 | -8/Materials | Identified exit to Garrison 5832 | -8/Materials | Build established: Hacker-Mutant 6082 | -8/Materials | Discovered new exit (range 4) 6108 | -8/Materials | Entered Factory 6108 | -7/Factory | Evolved 2 slots: Utility x2 6256 | -7/Factory | Garrison activated, responded to threat 6307 | -7/Factory | Lost 4 parts (2p2u) 6413 | -7/Factory | Self-destructed Last Messages --------------- Rifle. 06405_ U-05 Engineer lays Concrete. 06406_ M-28 Smith repairs Terrain Scanner. 06406_ U-05 Engineer lays Concrete. 06406_ K-01 Serf collects debris. 06406_ U-05 Engineer lays Concrete. 06408_ R-06 Scavenger collects Wheel. 06408_ U-05 Engineer lays Concrete. 06408_ Y-54 Guardian misfires. 06408_ U-05 Engineer destroyed. 06408_ K-01 Serf destroyed. 06408_ U-05 Engineer lays Concrete. 06409_ System corrupted: Energy discharge (-17). 06409_ U-05 Engineer lays Concrete. 06410_ Penetrated by Slug. 06410_ U-05 Engineer lays Concrete. 06411_ Broken Imp. Deuterium Engine destroyed. 06412_ U-05 Engineer lays Concrete. 06412_ R-06 Scavenger collects Welding Torch. 06413_ U-05 Engineer lays Concrete. Map ----- +----------------------------------------------------+ | ???????????????????????#???# ##????#????? | | ???????????????????????????# """ #??????????? | | ??????????????????????????## """ #??????????? | | ???????????????????? ??#??# """ #??????????? | | ???????????????????????????# #######????? | | ?????????????????????????#?# """ # #????? | | ???????????????????????????# """ # #??##? | | ????????????????????? ???# """ # #????? | | ???????????????????? ??# + #???#? | | ??????????????????? ??# """ # #????? | | ??????????????????? ?# """ # #???#? | | ???????????????? ??? ?# """ # #????? | | ?????????????????????# # # #???## | | ????????? ???????????# ######### #????? | | ?????????????????????# #????? | | ????????"????????????# #????# | | ?????????????????????# #????? | | ?????????????????????# #????? | | ??????"?"????????????# #????? | | ?????????????????????######## ########????? | | ?????????#+################## #???????????? | | ???????# !+%*|! ! # #???????????? | | ???????# ###""= % + +???????????? | | ???????????????#"" !* # #???????????? | | ???????????????#G h=| # #???????????? | | ???????????????#"" uYu @ # #???????????? | | ?????????? ????#""% u # ^#???????????? | | ???????????????# = u # #???????? ??? | | ???????????????# %%= # #???????????? | | ???????????????# m # #???????????? | | ?????????????? k r= ! # #???????????? | | ?????????????### = !=! # #???????????? | | ???????????????# %|= # #???????????? | | ???????????????###%########## #???????????? | | ?????????????????###????????? #???????????? | | ????????????????????????????? ????????????? | | ????????????????????????????? ??????????????? | | ??????????????????????????????????????????????? | | ??????????????????????????????????????????????? | | ??????????????????????????????????????????????? | | ??????????????????????????????????????????????? | | ??????????????????????????????????????????????? | | ??????????????????????????????????????????????? | | ??????????????????????????????????????????????? | | ??????????????????????????????????????????????? | | ??????????????????????????????????????????????? | | ??????????????????????????????????????????????? | | ??????????????????????????????????????????????? | | ??????????????????????????????????????????????? | | ??????????????????????????????????????????????? | +----------------------------------------------------+ Best States ------------- Heat Dissipation 39 Energy Generation 27 Energy Capacity 315 Matter Stores 300 Matter Capacity 300 Sight Range 16 Robot Scan Range 20 Terrain Scan Range 16 Terrain Scan Density 10 ECM Strength 1 Armor Coverage 225 Resistance: KI 20 Resistance: TH 20 Resistance: EX 20 Resistance: EM 20 Resistance: I 20 Resistance: S 20 Resistance: P 20 Propulsion Shielding 33 Evasion (%) 40 Recoil Reduction 4 Offensive Hacking 20 Item Schematics ----------------- None Robot Schematics ------------------ None Fabricated ------------ Nothing Alien Tech Used ----------------- None Achievements -------------- None Challenges ------------ None Game ------ Seed CompositeTitaniumShield Manual? 0 Play Time 00:37:33 Cumulative 8.7 hours Start 2024.07.20 @ 21:01:39 End 2024.07.20 @ 21:40:22 Sessions 1 Manual Loads 0 Difficulty Adventurer Special Mode None Game No. 14 Rogue 0 Adventurer 14 Explorer 0 Win Type - Total 0 Types 0/0/0/0/0/0/0/0/0 Lore% 16 Gallery% 20 Achievement% 16 Wizard Run 0 Options --------- Layout 1 ASCII 0 Keyboard 0 Movement Mouse Keybinds 0 Fullscreen 1 Font 24/Smallcaps Map View 50x35 Zoom Use 0% Tactical HUD 1 Map Filters NONE Filters NONE Steam 1 RUN: 6886357f-3453-433e-a049-c77e4bbdbdff